fUSD/lending_fUSD_20241118
["ID","MTS","AMOUNT","RATE_DAILY","PERIOD"]
[342546965,1731959500678,-1487.8,9.999e-05,2]
[342546966,1731959500688,-500.0,9.999e-05,2]
[342546967,1731959500697,-500.0,9.999e-05,2]
[342546968,1731959500706,-1487.8,9.999e-05,2]
[342546969,1731959500715,-500.0,9.999e-05,2]
[342546970,1731959500724,-500.0,9.999e-05,2]
[342546971,1731959500734,-1487.8,9.999e-05,2]
[342546972,1731959500743,-500.0,9.999e-05,2]
[342546973,1731959500752,-500.0,9.999e-05,2]
[342546974,1731959500761,-1487.8,9.999e-05,2]
[342546975,1731959500770,-500.0,9.999e-05,2]
[342546976,1731959500779,-1487.8,9.999e-05,2]
[342546977,1731959500788,-500.0,9.999e-05,2]
[342546978,1731959500797,-500.0,9.999e-05,2]
[342546979,1731959500806,-373.32511054,9.999e-05,2]
[342546980,1731959500815,-500.0,9.999e-05,2]
[342546981,1731959500824,-500.0,9.999e-05,2]
[342546982,1731959500833,-500.0,9.999e-05,2]
[342546983,1731959500843,-1487.8,9.999e-05,2]
[342546984,1731959500857,-500.0,9.999e-05,2]
[342546985,1731959500866,-500.0,9.999e-05,2]
[342546986,1731959500875,-1487.98668479,9.999e-05,2]
[342546987,1731959500886,-500.0,9.999e-05,2]
[342546988,1731959500895,-500.0,9.999e-05,2]
[342546989,1731959500906,-187.96853676,9.999e-05,2]
[342546990,1731959500916,-500.0,9.999e-05,2]
[342546991,1731959500928,-500.0,9.999e-05,2]
[342546992,1731959500938,-500.0,9.999e-05,2]
[342546993,1731959500948,-500.0,9.999e-05,2]
[342546994,1731959500958,-500.0,9.999e-05,2]
[342546995,1731959500966,-500.0,9.999e-05,2]
[342546996,1731959500979,-500.0,9.999e-05,2]
[342546997,1731959500989,-500.0,9.999e-05,2]
[342546998,1731959500998,-500.0,9.999e-05,2]
[342546999,1731959501007,-500.0,9.999e-05,2]
[342547000,1731959501016,-500.0,9.999e-05,2]
[342547001,1731959501026,-500.0,9.999e-05,2]
[342547002,1731959501035,-500.0,9.999e-05,2]
[342547003,1731959501044,-432.00630523,9.999e-05,2]
[342547004,1731959501054,-500.0,9.999e-05,2]
[342547005,1731959501063,-500.0,9.999e-05,2]
[342547006,1731959501072,-500.0,9.999e-05,2]
[342547007,1731959501082,-500.0,9.999e-05,2]
[342547008,1731959501091,-500.0,9.999e-05,2]
[342547009,1731959501100,-500.0,9.999e-05,2]
[342547010,1731959501109,-500.0,9.999e-05,2]
[342547011,1731959501118,-500.0,9.999e-05,2]
[342547012,1731959501128,-401.83,9.999e-05,2]
[342547013,1731959501137,-500.0,9.999e-05,2]
[342547014,1731959501146,-500.0,9.999e-05,2]
[342547015,1731959501156,-500.0,9.999e-05,2]
[342547016,1731959501165,-500.0,9.999e-05,2]
[342547017,1731959501174,-500.0,9.999e-05,2]
[342547018,1731959501182,-500.0,9.999e-05,2]
[342547019,1731959501191,-619.02,9.999e-05,2]
[342547020,1731959501200,-892.46,9.999e-05,2]
[342547021,1731959501209,-500.0,9.999e-05,2]
[342547022,1731959501218,-892.46,9.999e-05,2]
[342547023,1731959501232,-500.0,9.999e-05,2]
[342547024,1731959501243,-892.46,9.999e-05,2]
[342547025,1731959501252,-500.0,9.999e-05,2]
[342547026,1731959501261,-892.46,9.999e-05,2]
[342547027,1731959501270,-892.46,9.999e-05,2]
[342547028,1731959501280,-500.0,9.999e-05,2]
[342547029,1731959501289,-892.46,9.999e-05,2]
[342547030,1731959501298,-500.0,9.999e-05,2]
[342547031,1731959501308,-978.86,9.999e-05,2]
[342547032,1731959501317,-892.46,9.999e-05,2]
[342547033,1731959501326,-428.38,9.999e-05,2]
[342547034,1731959501334,-978.86,9.999e-05,2]
[342547035,1731959501343,-892.46,9.999e-05,2]
[342547036,1731959501352,-892.46,9.999e-05,2]
[342547037,1731959501362,-500.0,9.999e-05,2]
[342547038,1731959501371,-892.46,9.999e-05,2]
[342547039,1731959501381,-500.0,9.999e-05,2]
[342547040,1731959501390,-892.46,9.999e-05,2]
[342547041,1731959501400,-500.0,9.999e-05,2]
[342547042,1731959501409,-500.0,9.999e-05,2]
[342547043,1731959501419,-561.94,9.999e-05,2]
[342547044,1731959501429,-892.54082297,9.999e-05,2]
[342547045,1731959501439,-2621.27,9.999e-05,2]
[342547046,1731959501448,-2621.27,9.999e-05,2]
[342547047,1731959501458,-2621.27,9.999e-05,2]
[342547048,1731959501467,-851.15,9.999e-05,2]
[342547049,1731959501483,-2621.27,9.999e-05,2]
[342547050,1731959501493,-851.15,9.999e-05,2]
[342547051,1731959501502,-2621.27,9.999e-05,2]
[342547052,1731959501512,-2621.27,9.999e-05,2]
[342547053,1731959501522,-2621.27,9.999e-05,2]
[342547054,1731959501533,-500.0,9.999e-05,2]
[342547055,1731959501543,-500.0,9.999e-05,2]
[342547056,1731959501553,-2621.27,9.999e-05,2]
[342547057,1731959501563,-500.0,9.999e-05,2]
[342547058,1731959501574,-2621.27,9.999e-05,2]
[342547059,1731959501585,-500.0,9.999e-05,2]
[342547060,1731959501594,-2621.27,9.999e-05,2]
[342547061,1731959501604,-2621.27,9.999e-05,2]
[342547062,1731959501614,-500.0,9.999e-05,2]
[342547063,1731959501624,-574.32,9.999e-05,2]
[342547064,1731959501634,-2621.27,9.999e-05,2]
[342547065,1731959501644,-2621.27,9.999e-05,2]
[342547066,1731959501654,-2621.44,9.999e-05,2]
[342547067,1731959501664,-592.93,9.999e-05,2]
[342547068,1731959501673,-597.15,9.999e-05,2]
[342547069,1731959501682,-592.93,9.999e-05,2]
[342547070,1731959501691,-592.93,9.999e-05,2]
[342547071,1731959501701,-597.15,9.999e-05,2]
[342547072,1731959501710,-592.93,9.999e-05,2]
[342547073,1731959501720,-597.15,9.999e-05,2]
[342547074,1731959501734,-592.93,9.999e-05,2]
[342547075,1731959501744,-597.15,9.999e-05,2]
[342547076,1731959501754,-259.33214207,9.999e-05,2]
[342547077,1731959501764,-592.93,9.999e-05,2]
[342547078,1731959501774,-597.15,9.999e-05,2]
[342547079,1731959501784,-597.15,9.999e-05,2]
[342547080,1731959501794,-592.93,9.999e-05,2]
[342547081,1731959501803,-597.15,9.999e-05,2]
[342547082,1731959501813,-592.93,9.999e-05,2]
[342547083,1731959501823,-597.15,9.999e-05,2]
[342547084,1731959501832,-592.93,9.999e-05,2]
[342547085,1731959501842,-597.15,9.999e-05,2]
[342547086,1731959501855,-592.93,9.999e-05,2]
[342547087,1731959501865,-597.15,9.999e-05,2]
[342547088,1731959501873,-592.93,9.999e-05,2]
[342547089,1731959501883,-597.15,9.999e-05,2]
[342547090,1731959501892,-592.93,9.999e-05,2]
[342547091,1731959501902,-597.19983629,9.999e-05,2]
[342547092,1731959501911,-592.93,9.999e-05,2]
[342547093,1731959501921,-592.93,9.999e-05,2]
[342547094,1731959501934,-592.93,9.999e-05,2]
[342547095,1731959501944,-592.93,9.999e-05,2]
[342547096,1731959501955,-592.93,9.999e-05,2]
[342547097,1731959501964,-500.0,9.999e-05,2]
[342547098,1731959501977,-593.15122316,9.999e-05,2]
[342547099,1731959501987,-500.0,9.999e-05,2]
[342547100,1731959501996,-500.0,9.999e-05,2]
[342547101,1731959502006,-500.0,9.999e-05,2]
[342547102,1731959502016,-500.0,9.999e-05,2]
[342547103,1731959502026,-500.0,9.999e-05,2]
[342547104,1731959502035,-500.0,9.999e-05,2]
[342547105,1731959502045,-1209.24,9.999e-05,2]
[342547106,1731959502055,-500.0,9.999e-05,2]
[342547107,1731959502064,-1209.24,9.999e-05,2]
[342547108,1731959502073,-360.48723748,9.999e-05,2]
[342547109,1731959502083,-1209.24,9.999e-05,2]
[342547110,1731959502092,-1209.24,9.999e-05,2]
[342547111,1731959502101,-1209.24,9.999e-05,2]
[342547112,1731959502110,-1209.24,9.999e-05,2]
[342547113,1731959502118,-1209.24,9.999e-05,2]
[342547114,1731959502128,-500.0,9.999e-05,2]
[342547115,1731959502138,-1209.29160325,9.999e-05,2]
[342547116,1731959502147,-180.47038415,9.999e-05,2]
[342547117,1731959502157,-500.0,9.999e-05,2]
[342547118,1731959502166,-500.0,9.999e-05,2]
[342547119,1731959502176,-500.0,9.999e-05,2]
[342547120,1731959502185,-500.0,9.999e-05,2]
[342547121,1731959502194,-500.0,9.999e-05,2]
[342547122,1731959502203,-1132.99,9.999e-05,2]
[342547123,1731959502212,-500.0,9.999e-05,2]
[342547124,1731959502221,-1132.99,9.999e-05,2]
[342547125,1731959502237,-500.0,9.999e-05,2]
[342547126,1731959502246,-1132.99,9.999e-05,2]
[342547127,1731959502256,-500.0,9.999e-05,2]
[342547128,1731959502265,-818.78,9.999e-05,2]
[342547129,1731959502274,-1132.99,9.999e-05,2]
[342547130,1731959502284,-500.0,9.999e-05,2]
[342547131,1731959502294,-818.78,9.999e-05,2]
[342547132,1731959502304,-1132.99,9.999e-05,2]
[342547133,1731959502314,-500.0,9.999e-05,2]
[342547134,1731959502323,-818.78,9.999e-05,2]
[342547135,1731959502332,-1132.99,9.999e-05,2]
[342547136,1731959502342,-500.0,9.999e-05,2]
[342547137,1731959502351,-500.0,9.999e-05,2]
[342547138,1731959502361,-818.78,9.999e-05,2]
[342547139,1731959502370,-1132.99,9.999e-05,2]
[342547140,1731959502379,-500.0,9.999e-05,2]
[342547141,1731959502388,-500.0,9.999e-05,2]
[342547142,1731959502396,-818.78,9.999e-05,2]
[342547143,1731959502404,-1133.04,9.999e-05,2]
[342547144,1731959502413,-500.0,9.999e-05,2]
[342547145,1731959502423,-818.78,9.999e-05,2]
[342547146,1731959502431,-474.23336529,9.999e-05,2]
[342547147,1731959502441,-818.78,9.999e-05,2]
[342547148,1731959502450,-818.78,9.999e-05,2]
[342547149,1731959502459,-21152.016364,0.0001,2]
[342547150,1731959502468,-259.33214206,0.0001,2]
[342547151,1731959502482,-134565.50447989,0.0001,2]
[342547152,1731959504177,-519.49,9.971e-05,2]
[342547153,1731959504187,-502.32611201,9.972e-05,2]
[342547154,1731959504197,-296.63725908,9.972e-05,2]
[342547155,1731959504207,-500.0,9.972e-05,2]
[342547156,1731959504217,-500.0,9.972e-05,2]
[342547157,1731959504229,-519.49,9.973e-05,2]
[342547158,1731959504239,-519.49,9.973e-05,2]
[342547159,1731959504248,-519.49,9.974e-05,2]
[342547160,1731959504258,-500.0,9.974e-05,2]
[342547161,1731959504267,-500.0,9.974e-05,2]
[342547162,1731959504277,-500.0,9.975e-05,2]
[342547163,1731959504287,-270.10204857,9.975e-05,2]
[342547164,1731959504297,-500.0,9.976e-05,2]
[342547165,1731959504309,-519.49,9.992e-05,2]
[342547166,1731959504318,-519.49,9.993e-05,2]
[342547167,1731959504328,-519.49,9.994e-05,2]
[342547168,1731959504339,-500.0,9.994e-05,2]
[342547169,1731959504349,-519.49,9.995e-05,2]
[342547170,1731959504360,-500.0,9.995e-05,2]
[342547171,1731959504369,-519.49,9.995e-05,2]
[342547172,1731959504382,-541.09,9.996e-05,2]
[342547173,1731959504392,-519.49,9.996e-05,2]
[342547174,1731959504403,-500.0,9.996e-05,2]
[342547175,1731959504415,-500.0,9.996e-05,2]
[342547176,1731959504425,-500.0,9.996e-05,2]
[342547177,1731959504435,-519.49,9.997e-05,2]
[342547178,1731959504445,-541.09,9.998e-05,2]
[342547179,1731959504455,-541.09,9.998e-05,2]
[342547180,1731959504466,-519.49,9.998e-05,2]
[342547181,1731959504479,-519.49,9.998e-05,2]
[342547182,1731959504490,-3721.13464319,9.999e-05,2]
[342547183,1731959504500,-818.78,9.999e-05,2]
[342547184,1731959504510,-500.0,9.999e-05,2]
[342547185,1731959504520,-818.78,9.999e-05,2]
[342547186,1731959504530,-500.0,9.999e-05,2]
[342547187,1731959504539,-818.78,9.999e-05,2]
[342547188,1731959504549,-500.0,9.999e-05,2]
[342547189,1731959504559,-818.78,9.999e-05,2]
[342547190,1731959504569,-541.09,9.999e-05,2]
[342547191,1731959504579,-595.62,9.999e-05,2]
[342547192,1731959504589,-818.78,9.999e-05,2]
[342547193,1731959504599,-541.09,9.999e-05,2]
[342547194,1731959504609,-818.78,9.999e-05,2]
[342547195,1731959504619,-541.09,9.999e-05,2]
[342547196,1731959504629,-818.78,9.999e-05,2]
[342547197,1731959504640,-541.09,9.999e-05,2]
[342547198,1731959504651,-818.78,9.999e-05,2]
[342547199,1731959504660,-541.09,9.999e-05,2]
[342547200,1731959504671,-818.78,9.999e-05,2]
[342547201,1731959504682,-541.09,9.999e-05,2]
[342547202,1731959504692,-818.85588679,9.999e-05,2]
[342547203,1731959504702,-541.09,9.999e-05,2]
[342547204,1731959504713,-541.09,9.999e-05,2]
[342547205,1731959504727,-541.09,9.999e-05,2]
[342547206,1731959504737,-541.09,9.999e-05,2]
[342547207,1731959504747,-541.09,9.999e-05,2]
[342547208,1731959504757,-541.09,9.999e-05,2]
[342547209,1731959504767,-541.09,9.999e-05,2]
[342547210,1731959504776,-541.25,9.999e-05,2]
[342547211,1731959504787,-28078.16402776,0.0001,2]
[342547212,1731959504829,-500.0,9.971e-05,2]
[342547213,1731959504839,-500.0,9.997e-05,2]
[342547214,1731959504851,-21580.5498523,0.0001,2]
[342547215,1731959504941,-13567.32658218,0.0001,2]
[342547216,1731959504953,-15310.29476001,0.0001,2]
[342547217,1731959504965,-948.69703187,0.0001,2]
[342547218,1731959504999,-279.84,9.997e-05,2]
[342547219,1731959505009,-349.2575193,9.998e-05,2]
[342547220,1731959505022,-170.2324807,9.998e-05,2]
[342547221,1731959505032,-43962.81521718,0.0001,2]
[342547222,1731959505497,-500.0,9.973e-05,2]
[342547223,1731959505507,-500.0,9.973e-05,2]
[342547224,1731959505517,-500.0,9.973e-05,2]
[342547225,1731959505527,-500.0,9.974e-05,2]
[342547226,1731959505536,-500.0,9.974e-05,2]
[342547227,1731959505547,-500.0,9.992e-05,2]
[342547228,1731959505556,-500.0,9.993e-05,2]
[342547229,1731959505564,-161.75484755,9.994e-05,2]
[342547230,1731959505610,-709.59,9.972e-05,2]
[342547231,1731959505620,-338.24515245,9.994e-05,2]
[342547232,1731959505630,-500.0,9.995e-05,2]
[342547233,1731959505639,-519.49,9.998e-05,2]
[342547234,1731959505648,-519.49,9.998e-05,2]
[342547235,1731959505657,-519.49,9.999e-05,2]
[342547236,1731959505666,-519.49,9.999e-05,2]
[342547237,1731959505676,-3032.79231885,0.0001,2]
[342547238,1731959505688,-1350.04868856,0.0001,2]
[342547239,1731959505699,-9000.5,0.0001,2]
[342547240,1731959506072,-500.0,9.972e-05,2]
[342547241,1731959506082,-709.59,9.973e-05,2]
[342547242,1731959506092,-709.59,9.974e-05,2]
[342547243,1731959506101,-500.0,9.974e-05,2]
[342547244,1731959506111,-709.59,9.975e-05,2]
[342547245,1731959506120,-331.25820897,9.975e-05,2]
[342547246,1731959506130,-709.59,9.994e-05,2]
[342547247,1731959506138,-709.59,9.994e-05,2]
[342547248,1731959506148,-500.0,9.995e-05,2]
[342547249,1731959506157,-709.59,9.995e-05,2]
[342547250,1731959506167,-58.58528073,9.996e-05,2]
[342547251,1731959506179,-441.41471927,9.996e-05,2]
[342547252,1731959506189,-709.59,9.996e-05,2]
[342547253,1731959506198,-500.0,9.997e-05,2]
[342547254,1731959506207,-471.75842892,9.997e-05,2]
[342547255,1731959506219,-237.83157108,9.997e-05,2]
[342547256,1731959506233,-500.0,9.998e-05,2]
[342547257,1731959506243,-500.0,9.998e-05,2]
[342547258,1731959506253,-500.0,9.998e-05,2]
[342547259,1731959506262,-500.0,9.998e-05,2]
[342547260,1731959506271,-500.0,9.998e-05,2]
[342547261,1731959506280,-519.49,9.999e-05,2]
[342547262,1731959506289,-519.49,9.999e-05,2]
[342547263,1731959506299,-519.49,9.999e-05,2]
[342547264,1731959506308,-519.49,9.999e-05,2]
[342547265,1731959506317,-519.49,9.999e-05,2]
[342547266,1731959506327,-519.70195551,9.999e-05,2]
[342547267,1731959506336,-398.28988898,9.999e-05,2]
[342547268,1731959506345,-1047.93658443,0.0001,2]
[342547269,1731959506358,-1081.10000005,0.0001,2]
[342547270,1731959506371,-709.68,0.0001,2]
[342547271,1731959506382,-5196.17202013,0.0001,2]
[342547272,1731959506393,-9050.44877432,0.0001,2]
[342547273,1731959506405,-3722.73407312,0.0001,2]
[342547274,1731959506416,-1269.12000001,0.0001,2]
[342547275,1731959506427,-1271.49792001,0.0001,2]
[342547276,1731959506450,-709.59,9.998e-05,2]
[342547277,1731959506460,-3877.37644826,0.0001,2]
[342547278,1731959506471,-4023.85094472,0.0001,2]
[342547279,1731959506971,-500.0,9.971e-05,2]
[342547280,1731959506982,-84.53465609,9.971e-05,2]
[342547281,1731959506994,-808.20534391,9.971e-05,2]
[342547282,1731959507003,-500.0,9.972e-05,2]
[342547283,1731959507013,-500.0,9.972e-05,2]
[342547284,1731959507023,-500.0,9.973e-05,2]
[342547285,1731959507032,-500.0,9.973e-05,2]
[342547286,1731959507041,-892.74,9.973e-05,2]
[342547287,1731959507051,-892.74,9.973e-05,2]
[342547288,1731959507061,-500.0,9.974e-05,2]
[342547289,1731959507071,-500.0,9.974e-05,2]
[342547290,1731959507081,-500.0,9.974e-05,2]
[342547291,1731959507091,-500.0,9.974e-05,2]
[342547292,1731959507101,-892.74,9.974e-05,2]
[342547293,1731959507110,-500.0,9.975e-05,2]
[342547294,1731959507120,-500.0,9.976e-05,2]
[342547295,1731959507130,-500.0,9.992e-05,2]
[342547296,1731959507140,-500.0,9.993e-05,2]
[342547297,1731959507150,-500.0,9.993e-05,2]
[342547298,1731959507160,-255.71608234,9.994e-05,2]
[342547299,1731959507170,-500.0,9.994e-05,2]
[342547300,1731959507179,-500.0,9.994e-05,2]
[342547301,1731959507189,-500.0,9.995e-05,2]
[342547302,1731959507198,-500.0,9.995e-05,2]
[342547303,1731959507207,-500.0,9.996e-05,2]
[342547304,1731959507217,-709.59,9.998e-05,2]
[342547305,1731959507228,-709.59,9.998e-05,2]
[342547306,1731959507237,-709.59,9.999e-05,2]
[342547307,1731959507248,-709.59,9.999e-05,2]
[342547308,1731959507261,-709.59,9.999e-05,2]
[342547309,1731959507272,-709.59,9.999e-05,2]
[342547310,1731959507281,-709.59,9.999e-05,2]
[342547311,1731959507291,-709.59,9.999e-05,2]
[342547312,1731959507300,-709.59,9.999e-05,2]
[342547313,1731959507310,-709.59,9.999e-05,2]
[342547314,1731959507319,-711380.89391034,0.0001,2]
[342547315,1731959507403,-500.0,9.995e-05,2]
[342547316,1731959507413,-500.0,9.996e-05,2]
[342547317,1731959507423,-5562.89607517,0.0001,2]
[342547318,1731959507434,-351.553744,0.0001,2]
[342547319,1731959507445,-593.10359483,0.0001,2]
[342547320,1731959507457,-332.84310986,0.0001,2]
[342547321,1731959507493,-892.74,9.992e-05,2]
[342547322,1731959507502,-464.1412296,9.999e-05,2]
[342547323,1731959507518,-245.4487704,9.999e-05,2]
[342547324,1731959507527,-46315.56856755,0.0001,2]
[342547330,1731960053442,695.76,8.219e-05,2]
[342547351,1731960632150,-15982.31223401,9.029e-05,2]
[342547352,1731960632160,-150.0,9.029e-05,2]
[342547353,1731960632170,-300.0,9.029e-05,2]
[342547354,1731960632179,-88789.1336323,9.03e-05,2]
[342547355,1731960632191,-693.03,9.03e-05,2]
[342547356,1731960632201,-250.0,9.067e-05,2]
[342547357,1731960632211,-1000.0,9.069e-05,2]
[342547358,1731960632223,-25379.0,9.5e-05,2]
[342547359,1731960632232,-200.0,9.6e-05,2]
[342547360,1731960632242,-200.0,9.6e-05,2]
[342547361,1731960632252,-2500.0,9.649e-05,2]
[342547362,1731960632262,-2500.0,9.649e-05,2]
[342547363,1731960632272,-2500.0,9.772e-05,2]
[342547364,1731960632281,-84085.9281,9.872e-05,2]
[342547365,1731960632292,-150.0,9.88e-05,2]
[342547366,1731960632301,-7067.0186,9.897e-05,2]
[342547367,1731960632310,-255.0,9.932e-05,2]
[342547368,1731960632320,-420.0,9.932e-05,2]
[342547369,1731960632329,-500.0,9.97e-05,2]
[342547370,1731960632339,-500.0,9.97e-05,2]
[342547371,1731960632349,-906.75,9.97e-05,2]
[342547372,1731960632359,-500.0,9.97e-05,2]
[342547373,1731960632368,-500.0,9.97e-05,2]
[342547374,1731960632377,-500.0,9.97e-05,2]
[342547375,1731960632387,-963.02,9.97e-05,2]
[342547376,1731960632396,-1074.26,9.97e-05,2]
[342547377,1731960632406,-500.0,9.97e-05,2]
[342547378,1731960632415,-500.0,9.97e-05,2]
[342547379,1731960632424,-500.0,9.97e-05,2]
[342547380,1731960632433,-775.04,9.971e-05,2]
[342547381,1731960632446,-500.0,9.971e-05,2]
[342547382,1731960632456,-560.41,9.971e-05,2]
[342547383,1731960632466,-500.0,9.971e-05,2]
[342547384,1731960632475,-529.63,9.971e-05,2]
[342547385,1731960632484,-500.0,9.971e-05,2]
[342547386,1731960632494,-1376.78,9.971e-05,2]
[342547387,1731960632503,-500.0,9.971e-05,2]
[342547388,1731960632512,-1325.5,9.971e-05,2]
[342547389,1731960632521,-500.0,9.971e-05,2]
[342547390,1731960632531,-500.0,9.971e-05,2]
[342547391,1731960632540,-500.0,9.971e-05,2]
[342547392,1731960632549,-500.0,9.971e-05,2]
[342547393,1731960632558,-554.02,9.971e-05,2]
[342547394,1731960632568,-500.0,9.971e-05,2]
[342547395,1731960632579,-500.0,9.971e-05,2]
[342547396,1731960632588,-664.45,9.971e-05,2]
[342547397,1731960632598,-500.0,9.971e-05,2]
[342547398,1731960632607,-447.75670877,9.971e-05,2]
[342547399,1731960632616,-645.97,9.971e-05,2]
[342547400,1731960632625,-500.0,9.971e-05,2]
[342547401,1731960632635,-500.0,9.971e-05,2]
[342547402,1731960632644,-500.0,9.971e-05,2]
[342547403,1731960632654,-500.0,9.971e-05,2]
[342547404,1731960632663,-1685.54,9.971e-05,2]
[342547405,1731960632672,-500.0,9.971e-05,2]
[342547406,1731960632682,-500.0,9.971e-05,2]
[342547407,1731960632696,-500.0,9.971e-05,2]
[342547408,1731960632706,-500.0,9.971e-05,2]
[342547409,1731960632716,-500.0,9.971e-05,2]
[342547410,1731960632725,-518.60079198,9.971e-05,2]
[342547411,1731960632735,-541.66,9.971e-05,2]
[342547412,1731960632745,-1879.79,9.971e-05,2]
[342547413,1731960632754,-860.22,9.971e-05,2]
[342547415,1731960632763,-584.36,9.971e-05,2]
[342547417,1731960632773,-500.0,9.971e-05,2]
[342547419,1731960632782,-500.0,9.971e-05,2]
[342547421,1731960632791,-500.0,9.971e-05,2]
[342547423,1731960632801,-648.69,9.971e-05,2]
[342547425,1731960632810,-689.84,9.971e-05,2]
[342547427,1731960632819,-1740.97,9.971e-05,2]
[342547429,1731960632828,-500.0,9.971e-05,2]
[342547430,1731960632837,-500.0,9.971e-05,2]
[342547431,1731960632846,-500.0,9.971e-05,2]
[342547432,1731960632855,-500.0,9.971e-05,2]
[342547433,1731960632866,-605.96,9.971e-05,2]
[342547435,1731960632875,-500.0,9.971e-05,2]
[342547437,1731960632884,-500.0,9.972e-05,2]
[342547438,1731960632896,-500.0,9.972e-05,2]
[342547439,1731960632906,-500.0,9.972e-05,2]
[342547440,1731960632915,-500.0,9.972e-05,2]
[342547441,1731960632925,-500.0,9.972e-05,2]
[342547442,1731960632936,-500.0,9.972e-05,2]
[342547443,1731960632951,-500.0,9.972e-05,2]
[342547444,1731960632972,-500.0,9.972e-05,2]
[342547445,1731960632997,-241.73524552,9.972e-05,2]
[342547446,1731960633023,-169.17694391,9.972e-05,2]
[342547447,1731960633051,-500.0,9.972e-05,2]
[342547448,1731960633081,-500.0,9.972e-05,2]
[342547449,1731960633113,-500.0,9.972e-05,2]
[342547450,1731960633145,-500.0,9.972e-05,2]
[342547451,1731960633177,-500.0,9.972e-05,2]
[342547452,1731960633213,-500.0,9.972e-05,2]
[342547453,1731960633237,-500.0,9.972e-05,2]
[342547454,1731960633247,-500.0,9.972e-05,2]
[342547455,1731960633258,-500.0,9.972e-05,2]
[342547456,1731960633270,-500.0,9.972e-05,2]
[342547457,1731960633281,-500.0,9.972e-05,2]
[342547458,1731960633292,-500.0,9.972e-05,2]
[342547459,1731960633303,-500.0,9.972e-05,2]
[342547460,1731960633313,-882.59,9.972e-05,2]
[342547461,1731960633324,-500.0,9.972e-05,2]
[342547462,1731960633333,-500.0,9.972e-05,2]
[342547463,1731960633345,-500.0,9.972e-05,2]
[342547464,1731960633355,-500.0,9.972e-05,2]
[342547465,1731960633366,-500.0,9.972e-05,2]
[342547466,1731960633376,-500.0,9.972e-05,2]
[342547467,1731960633386,-500.0,9.972e-05,2]
[342547468,1731960633398,-500.0,9.972e-05,2]
[342547469,1731960633408,-500.0,9.972e-05,2]
[342547470,1731960633418,-500.0,9.972e-05,2]
[342547471,1731960633427,-500.0,9.972e-05,2]
[342547472,1731960633441,-500.0,9.972e-05,2]
[342547473,1731960633452,-844.48,9.972e-05,2]
[342547474,1731960633462,-500.0,9.972e-05,2]
[342547475,1731960633473,-500.0,9.972e-05,2]
[342547476,1731960633483,-500.0,9.972e-05,2]
[342547477,1731960633493,-617.66413477,9.972e-05,2]
[342547478,1731960633503,-500.0,9.972e-05,2]
[342547479,1731960633512,-500.0,9.972e-05,2]
[342547480,1731960633521,-500.0,9.972e-05,2]
[342547481,1731960633531,-500.0,9.972e-05,2]
[342547482,1731960633541,-500.0,9.972e-05,2]
[342547483,1731960633552,-614.71,9.972e-05,2]
[342547484,1731960633562,-605.30627592,9.972e-05,2]
[342547485,1731960633572,-500.0,9.972e-05,2]
[342547486,1731960633581,-500.0,9.972e-05,2]
[342547487,1731960633590,-500.0,9.972e-05,2]
[342547488,1731960633599,-500.0,9.972e-05,2]
[342547489,1731960633609,-517.53662226,9.972e-05,2]
[342547490,1731960633619,-500.0,9.972e-05,2]
[342547491,1731960633628,-500.0,9.972e-05,2]
[342547492,1731960633638,-500.0,9.972e-05,2]
[342547493,1731960633648,-500.0,9.972e-05,2]
[342547494,1731960633658,-500.0,9.972e-05,2]
[342547495,1731960633668,-500.0,9.972e-05,2]
[342547496,1731960633678,-706.75,9.972e-05,2]
[342547497,1731960633690,-500.0,9.972e-05,2]
[342547498,1731960633700,-500.0,9.972e-05,2]
[342547499,1731960633709,-500.0,9.972e-05,2]